Cogmind - Beta 14 *** ADVENTURER MODE // 2024.08.12 @ 13:26:00 Player: KoyamiKomachi Result: Destroyed by 8O-GUW(R) with Subdweller Laser Performance ------------- Evolutions (0) 0 Regions Visited (3) 600 Robots Destroyed (22) 110 Value Destroyed (582) 582 Prototype IDs (7) 140 Alien Tech Used (0) 0 Bonus (109) 109 TOTAL SCORE: 1541 Bonus ------- Follower Combat Kills 145 Friendly Fire -36 Cogmind --------- Core Integrity 0/250 Matter 296/300 Energy 92/100 System Corruption 0% Temperature Cool (6) Movement Treading (240) Ox1 Location -10/Subcaves Parts ------- > --- POWER (1) -------- Subdweller Power Source > --- PROPULSION (2) --- Light Treads Subdweller Monowheel > --- UTILITY (2) ------ Medium Storage Unit Subdweller Optics > --- WEAPON (2) ------- Beam Cannon Subdweller Machine Gun > --- INVENTORY (10) --- Light Nuclear Core Light Treads Wheel Wheel Subdweller Monowheel Improved Heat Sink Seismic Detector Grenade Launcher Subdweller Shrapnel Launcher Mining Claw Peak State ------------ > --- POWER ------------ Light Nuclear Core > --- PROPULSION ------- Light Treads Wheel > --- UTILITY ---------- Medium Storage Unit Experimental Sensor Array > --- WEAPON ----------- Assault Rifle Light Assault Rifle > --- INVENTORY -------- Light Nuclear Core Light Treads Wheel Improved Heat Sink Seismic Detector Targeting Computer Beam Cannon Grenade Launcher Grenade Launcher Mining Claw [Rating: 18] Favorites ----------- Power Light Ion Engine Engine Light Ion Engine Power Core Light Nuclear Core Propulsion Light Treads Treads Light Treads Wheel Compact Wheel Utility Small Storage Unit Device Improved Terrain Scanner Storage Small Storage Unit Protection Scrap Shield Weapon Assault Rifle Energy Cannon Beam Cannon Ballistic Gun Assault Rifle Launcher Subdweller Shrapnel Launcher Slashing Weapon Mining Claw Build | -11 -10 -10 -10 ------- Run | Yrd Mat Min Sub Slots Evolved . | . . . . Power . | . . . . Propulsion . | . . . . Utility . | . . . . Weapon . | . . . . Parts Attached 44 | 11 12 3 18 Power 9 | 2 4 1 2 Engine 5 | 2 1 . 2 Core 4 | . 3 1 . Reactor . | . . . . Propulsion 11 | 3 4 . 4 Treads 4 | 1 2 . 1 Leg . | . . . . Wheel 7 | 2 2 . 3 Hover . | . . . . Flight . | . . . . Utility 13 | 4 2 1 6 Device 9 | 3 1 1 4 Storage 3 | 1 1 . 1 Processor . | . . . . Hackware . | . . . . Protection 1 | . . . 1 Artifact . | . . . . Weapon 11 | 2 2 1 6 Energy Gun . | . . . . Energy Cannon 1 | . . . 1 Ballistic Gun 7 | 2 1 1 3 Ballistic Cannon . | . . . . Launcher 2 | . . . 2 Special Weapon . | . . . . Impact Weapon . | . . . . Slashing Weapon 1 | . 1 . . Piercing Weapon . | . . . . Special Melee Weapon . | . . . . Unidentified Prototypes 1 | . . 1 . Parts Lost 2 | . 1 . 1 Power 1 | . 1 . . Propulsion . | . . . . Utility 1 | . . . 1 Weapon . | . . . . Highest Loss Streak 1 | . 1 . 1 To Critical Strikes . | . . . . Average Slot Usage (%) 99 | . 99 100 94 Engine 2 | . 3 . 8 Core 11 | . 9 14 4 Treads 14 | . 14 14 14 Wheel 13 | . 14 14 13 Device 13 | . 14 14 11 Storage 13 | . 14 14 13 Ballistic Gun 24 | . 24 27 17 Slashing Weapon 1 | . 3 . . Peak Build Rating 18 | 10 10 18 18 Average Rating 8 | 7 9 12 12 On Entrance 9 | . 10 10 18 Naked Turns . | . . . . Heaviest Build 29 | 12 20 20 29 Greatest Support 20 | 20 10 10 20 Greatest Overweight (x) 3 | 1 1 1 3 Average Overweight (x) . | . 1 1 1 Largest Inventory Capacity 10 | 8 10 10 10 Average Capacity 8 | 7 9 10 9 Most Carried 10 | 8 10 10 10 Average Carried 6 | 5 8 9 9 Final Capacity 10 | 8 10 10 10 Final Carried 10 | 8 10 10 10 Class Distribution -------------------- 82% | Mutant 17% | Scavenger-Mutant Dominant Class ---------------- Scavenger-Mutant | -10/Materials Scavenger-Mutant | -10/Mines Scavenger-Mutant | -10/Subcaves Resources | -11 -10 -10 -10 ----------- Run | Yrd Mat Min Sub Matter Collected 990 | 338 331 94 227 Remotely . | . . . . Salvage Created 708 | 11 518 138 41 Parts 43 | 4 32 5 2 Haulers Intercepted 2 | . 2 . . Recyclers Shooed . | . . . . Parts Field Recycled . | . . . . Retrieved Matter . | . . . . Parts Self-Destructed 9 | . . . 9 Prevented . | . . . . Kills | -11 -10 -10 -10 ------- Run | Yrd Mat Min Sub Combat Hostiles Destroyed 15 | 2 9 3 1 Guns 14 | 2 9 3 . AOE 1 | . . . 1 Classes Destroyed 9 | 2 6 . 1 Worker 2 | . 2 . . Tunneler 1 | 1 . . . Hauler 2 | . 2 . . Recycler 1 | . 1 . . Watcher 1 | . 1 . . Swarmer 3 | . 3 . . Grunt 9 | . 6 3 . Demolisher 2 | 2 . . . Subdweller 1 | . . . 1 Best Kill Streak 5 | 2 5 2 1 Combat Bots Only 4 | 2 4 2 1 Max Kills in Single Turn 1 | 1 1 1 1 Gunslinging . | . . . . Exploded 1 | . . . 1 Melee . | . . . . Uniques/NPCs Destroyed . | . . . . Combat | -11 -10 -10 -10 -------- Run | Yrd Mat Min Sub Hostile Shots Fired 81 | 6 43 19 13 Missed 22 | . 10 7 5 Damage Taken 826 | 196 304 118 208 Core 254 | 85 32 43 94 Absorbed by Shields . | . . . . Ignored by Resistances 238 | 52 93 36 57 Regen/Repaired (Parts) 39 | . 39 . . Core Remaining (%) 66 | 66 . . . Volleys Fired 89 | 7 54 16 12 Largest 2 | 2 2 2 2 Hottest 90 | 40 40 40 90 Shots Fired 178 | 14 108 32 24 Gun 172 | 14 108 32 18 Cannon 5 | . . . 5 Launcher 1 | . . . 1 Special . | . . . . Kinetic 173 | 14 108 32 19 Thermal 5 | . . . 5 Explosive . | . . . . Electromagnetic . | . . . . Robot Hit Streak 29 | 7 29 15 11 Robot Miss Streak 3 | 2 3 2 2 Penetration Max . | . . . . Secondary Targets 4 | 1 2 1 . Max Gunslinging Chain 1 | 1 1 1 . Shots Hit Robots 138 | 10 82 26 20 Core Hits 55 | 5 32 13 5 Critical Kills . | . . . . Critical Parts Destroyed 1 | . . . 1 Critical Strikes 1 | . . . 1 Destroy 1 | . . . 1 Melee Attacks 4 | . 4 . . Impact . | . . . . Slashing 4 | . 4 . . Piercing . | . . . . Sneak Attacks . | . . . . Combat Hostiles . | . . . . Follow-up Attacks . | . . . . Damage Inflicted 1588 | 103 899 275 311 Guns 1411 | 103 874 275 159 Cannons 53 | . . . 53 Explosions 99 | . . . 99 Melee 25 | . 25 . . Ramming . | . . . . Kinetic 1510 | 103 874 275 258 Thermal 53 | . . . 53 Explosive . | . . . . Electromagnetic . | . . . . Impact . | . . . . Slashing 25 | . 25 . . Piercing . | . . . . Highest Corruption . | . . . . Average Corruption . | . . . . Corruption Purged . | . . . . Corruption Blocked . | . . . . Overload Shots . | . . . . Overflow Damage . | . . . . Projectiles . | . . . . Explosions . | . . . . Melee . | . . . . Knockbacks . | . . . . Impact . | . . . . Kinetic . | . . . . Secondary . | . . . . Self-Inflicted Damage 37 | . . . 37 Shots 1 | . . . 1 Rammed . | . . . . Targets Rammed . | . . . . Kicked . | . . . . Crushed . | . . . . Highest Temperature 28 | . 28 17 . Average Temperature 6 | . 6 6 . Received Heat Transfer 291 | . 135 90 66 Siege Activations . | . . . . Robots Corrupted . | . . . . Combat Hostiles . | . . . . Parts Fried . | . . . . Impact Corruptions . | . . . . Robots Melted . | . . . . Combat Hostiles . | . . . . Parts Melted . | . . . . Heat Transferred 111 | . . . 111 Parts Sabotaged . | . . . . Parts Stolen . | . . . . Parts Stripped . | . . . . Power Chain Reactions . | . . . . Alert | -11 -10 -10 -10 ------- Run | Yrd Mat Min Sub Peak Influence 252 | 50 252 163 . Initial 7 | . . 7 . Average 15 | 2 68 45 . Maximum Alert Level 1 | . 1 . . Low Security (%) 99 | 100 96 100 . Level 1 . | . 3 . . Level 2 . | . . . . Level 3 . | . . . . Level 4 . | . . . . Level 5 . | . . . . High Security . | . . . . Max Security . | . . . . Squads Dispatched . | . . . . Investigation . | . . . . Extermination . | . . . . Reinforcement . | . . . . Assault . | . . . . Garrison . | . . . . Intercept . | . . . . Searches Triggered . | . . . . Construction Impeded . | . . . . Haulers Reinforced . | . . . . Active Scanning Responses . | . . . . Cargo Convoy Interrupts . | . . . . Stealth | -11 -10 -10 -10 --------- Run | Yrd Mat Min Sub Distress Signals 1 | . 1 . . Communications Jammed . | . . . . Distress Signals . | . . . . Times Spotted 36 | 2 18 8 8 Peak Tracking Total 4 | 2 4 2 4 Tactical Retreats 1 | . 1 . . Traps | -11 -10 -10 -10 ------- Run | Yrd Mat Min Sub Traps Triggered 1 | . 1 . . Indirectly . | . . . . Trap Hack Attempts . | . . . . Triggered . | . . . . Disarmed . | . . . . Reprogrammed . | . . . . Reused . | . . . . Traps Extracted . | . . . . Installed . | . . . . Triggered . | . . . . Machines | -11 -10 -10 -10 ---------- Run | Yrd Mat Min Sub Machines Disabled . | . . . . Max in Single Turn . | . . . . Machines Repaired . | . . . . Machines Dismantled . | . . . . Machines Sabotaged . | . . . . Overloaded Fab Kills . | . . . . Hacking | -11 -10 -10 -10 --------- Run | Yrd Mat Min Sub Machines Accessed 8 | . 8 . . Terminals 7 | . 7 . . Fabricators . | . . . . Repair Stations 1 | . 1 . . Recycling Units . | . . . . Scanalyzers . | . . . . Garrison Access . | . . . . Total Hacks 26 | . 26 . . Successful 14 | . 14 . . Failed 12 | . 12 . . Catastrophic 1 | . 1 . . Database Lockouts . | . . . . Manual 14 | . 14 . . Terminals 22 | . 22 . . Fabricators . | . . . . Repair Stations 4 | . 4 . . Recycling Units . | . . . . Scanalyzers . | . . . . Garrison Access . | . . . . Terminal Hacks 10 | . 10 . . Robot Analysis 1 | . 1 . . Prototype ID Bank 6 | . 6 . . Emergency Access Points 1 | . 1 . . Locate Traps 1 | . 1 . . Hauler Manifests 1 | . 1 . . Fabricator Hacks . | . . . . Repair Station Hacks 4 | . 4 . . Scan Component 2 | . 2 . . Repair 2 | . 2 . . Recycling Unit Hacks . | . . . . Scanalyzer . | . . . . Garrison Access Hacks . | . . . . Unauthorized Hacks . | . . . . Terminals . | . . . . Fabricators . | . . . . Repair Stations . | . . . . Recycling Units . | . . . . Scanalyzers . | . . . . Garrison Access . | . . . . Data Cores Recovered . | . . . . Used . | . . . . Hacking Detections 8 | . 8 . . Full Trace Events . | . . . . Feedback Events . | . . . . Feedback Blocked . | . . . . Robot Schematics Acquired . | . . . . Robots Built . | . . . . Authchips . | . . . . Time . | . . . . Total Robot Build Rating . | . . . . Part Schematics Acquired . | . . . . Parts Built . | . . . . Authchips . | . . . . Time . | . . . . Total Part Build Rating . | . . . . Parts Repaired 2 | . 2 . . Time 64 | . 64 . . Parts Recycled . | . . . . Recycled Matter . | . . . . Retrieved Matter . | . . . . Retrieved Components . | . . . . Parts Scanalyzed . | . . . . Part Schematics Acquired . | . . . . Parts Damaged . | . . . . Bothacking | -11 -10 -10 -10 ------------ Run | Yrd Mat Min Sub Used RIF Installer . | . . . . Robots Hacked . | . . . . Non-combat . | . . . . Combat . | . . . . Robot Hacks Applied . | . . . . Relay Couplers Released . | . . . . Fabnet Peak Effective % . | . . . . Robots Rewired . | . . . . Allies Hacked . | . . . . Hacks Repelled . | . . . . Allies | -11 -10 -10 -10 -------- Run | Yrd Mat Min Sub Total Allies 3 | . . 3 . Largest Group 3 | . . 3 . Highest-Rated Group 40 | . . 40 . Highest-Rated Ally 16 | . . 16 . Total Orders . | . . . . Ally Attacks 18 | . . 18 . Total Damage 171 | . . 171 . Kills 5 | . . 5 . Allies Corrupted . | . . . . Allies Melted . | . . . . Intel | -11 -10 -10 -10 ------- Run | Yrd Mat Min Sub Robot Analysis Total 1 | . 1 . . Derelict Logs Recovered 2 | . . 2 . Drone Launches . | . . . . Drone Recoveries . | . . . . Exploration | -11 -10 -10 -10 ------------- Run | Yrd Mat Min Sub Turns Passed 10713 | 7970 1227 1194 322 Spaces Moved 4823 | 2707 882 1030 204 Core 2 | 1 . . 1 Treads 5 | 2 . . 3 Legs . | . . . . Wheels 4816 | 2704 882 1030 200 Hover . | . . . . Flight . | . . . . Fastest Speed 50 | 50 95 95 80 Average Speed 97 | 99 95 95 108 Slowest Speed 200 | 160 95 95 200 Overloaded Moves . | . . . . Propulsion Burnouts . | . . . . Robots Hopped . | . . . . Cave-ins Triggered . | . . . . Exploration Rate (%) 69 | 76 90 101 9 Regions Visited 3 Branch Regions 2 Pre-discovered Areas 2 | . . 2 . Known Exits Taken . | . . . . Unknown Exits Taken 3 | 1 1 1 . Scrap Searched 1 | . . 1 . Spaces Dug 3 | . 3 . . Terrain Destroyed 18 | . 3 . 15 Melee 3 | . 3 . . Projectile . | . . . . AOE 15 | . . . 15 Terrain Rammed . | . . . . Walls Destroyed . | . . . . Machines Disabled . | . . . . Actions | -11 -10 -10 -10 --------- Run | Yrd Mat Min Sub Total 10655 | 7982 1171 1216 286 Wait 5625 | 5246 196 165 18 Move 4820 | 2706 881 1029 204 Hop . | . . . . Pick Up 32 | 9 10 1 12 Fast Attach 15 | 7 . . 8 Attach 6 | . 1 . 5 Detach 6 | . . . 6 Swap 23 | 4 11 3 5 Drop 35 | 3 14 2 16 Fire 89 | 7 54 16 12 Melee 4 | . 4 . . Ram . | . . . . Kick . | . . . . Crush . | . . . . Escape Stasis . | . . . . Rewire . | . . . . Trap . | . . . . Miscellaneous . | . . . . Route ------- -11/Scrapyard -10/Materials (discovered 4 exits: [*Mat x3] / [*Min]) -10/Mines (discovered 3 exits: [*Mat x2] / [*Sub]) -10/Subcaves (discovered 1 exit: [*Mat]) History --------- Turn | Location | Event 12 | -11/Scrapyard | Discovered new exit (range 15) 4340 | -11/Scrapyard | Assembled infested the area 7971 | -11/Scrapyard | Entered Materials 7972 | -10/Materials | Build established: Mutant 8239 | -10/Materials | Discovered new exit (range 15) 8424 | -10/Materials | Discovered new exit (range 11) 8637 | -10/Materials | Repaired Mining Claw 8676 | -10/Materials | Repaired Lgt. Nuclear Core 8735 | -10/Materials | Build established: Scavenger-Mutant 9013 | -10/Materials | Discovered new exit (range 10) 9185 | -10/Materials | Discovered new exit (range 8) 9198 | -10/Materials | Entered Mines 9226 | -10/Mines | Core integrity fell below 50% 9247 | -10/Mines | Discovered new exit (range 8) 9281 | -10/Mines | Learned Materials stockpile data 9347 | -10/Mines | Assisted by bots powering up and referring to "LRC-V3" 9451 | -10/Mines | Learned location of Zion (-6) 9565 | -10/Mines | Found a damaged Exp. Sensor Array with a note attached 9568 | -10/Mines | Found Prototype Device 9572 | -10/Mines | Learned location of Storage (-8) 9886 | -10/Mines | Discovered new exit (range 5) 10076 | -10/Mines | Identified Exp. Sensor Array 10363 | -10/Mines | Build established: Mutant 10384 | -10/Mines | Discovered new exit (range 9) 10392 | -10/Mines | Entered Subcaves 10478 | -10/Subcaves | Discovered new exit (range 13) 10492 | -10/Subcaves | Core integrity fell below 20% 10714 | -10/Subcaves | Destroyed by 8O-GUW(R) with Subdweller Laser Last Messages --------------- 10597_ HV Slug penetrates Earth. 10598_ QO-BP7(R): "ARGHSUB!" 10603_ Acquired Sub. Monowheel. 10604_ Acquired 1 matter. 10613_ HV Slug penetrates QO-BP7(R). 10613_ QO-BP7(R) suffers critical hit (Destroy). 10613_ QO-BP7(R) knocked back. 10615_ QO-BP7(R) affixes Scrap Shield Fragment to Scrap Shield. 10627_ Acquired 56 matter. 10631_ Acquired 31 matter. 10634_ Acquired 22 matter. 10654_ Subatomizers dissect the Assault Rifle. 10665_ Subatomizers dissect the Assault Rifle, destroying it. 10668_ Sub. Power Source shoots sparks and powers down. 10706_ VZ-653(h) destroyed. 10711_ 8O-GUW(R) suffers critical hit (Destroy). 10711_ Destroyed Sub. Monowheel. Map ----- +----------------------------------------------------+ | ?????????????????????????????????????????????????? | | ?????????????????????????????????????????????????? | | ?????????????????????????????????????????????????? | | ?????????????????????????????????????????????????? | | ?????????????????????????????????????????????????? | | ?????????????????????????????????????????????????? | | ?????????????????????????????????????????????????? | | ?????????????????????????????????????????????????? | | ?????????????????????????????????????????????????? | | ?????????????????????????????????????????????????? | | ?????????????????????????????????????????????????? | | ?????????? #????????????????????????????????????? | | ?????????? #???????????????##?????????????????? | | ??????????? ???????????###; ?????????????????? | | ???????????? ?????????? ??????????????????? | | ????????????? ????????? ??????????????????? | | ??????????????? ??????### ???????????????????? | | ???????????????? ????## " ???????????????????? | | ?????????????????# ??## " R????????????????????? | | ?????????????????# ### ! ????????????????????? | | ?????????????????# !&?????????????????????? | | ?????????????????# ] %??######?????????????? | | ?????????????????? %#??# "#?????????????? | | ?????????????????????#; =%#??# #??????????????? | | ????????????????????### [!#### ##?????????????? | | ???????????????????## @ ##" #?????????????? | | ??????????????????## #?????????????? | | ?????????????????## % #?????????????# | | ?????????????????# ##????????##### | | ?????????????????# % ##?#####??# | | ?????????????????## ### #??## | | ??????????????????#### ##??# | | ?????????????????????# ## # # #### | | ?????????????????????# ####;; ##"## | | ?????????????????????# % # # # # | | ????????????????# ## ## % ! # | | ????????????????# % # % # | | ????????????????# ##### ###### "" " """# | | ????????????????# ?????# ##???# #; ""#" ##"" | | ????????????????# ??????####????## #; **|% """ | | ????????????????#???????????????## " ! [%! " "# | | ????????????????????????????????# !! " | | ????????????????????????????????#"" " & ! [ | | ????????????????????????????????###""& "#" && ] | | ??????????????????????????????????##"! ##""""" | | ???????????????????????????????????### #### ### | | ?????????????????????????????????????#&#??###""" # | | ?????????????????????????????????????# ##### "" ## | | ????????????????????????????????????## ""## | | ????????????????????????????????????# " | +----------------------------------------------------+ Best States ------------- Heat Dissipation 25 Energy Generation 15 Energy Capacity 200 Matter Stores 300 Matter Capacity 300 Sight Range 21 Robot Scan Range 20 Terrain Scan Range 16 Terrain Scan Density 10 Resistance: KI 20 Resistance: TH 20 Resistance: EX 20 Resistance: EM 20 Resistance: I 20 Resistance: S 20 Resistance: P 20 Evasion (%) 41 Recoil Reduction 1 Offensive Hacking 10 Item Schematics ----------------- None Robot Schematics ------------------ None Fabricated ------------ Nothing Alien Tech Used ----------------- None Achievements -------------- None Challenges ------------ None Game ------ Seed MissileMiniRedistributor Manual? 0 Play Time 00:55:45 Cumulative 112.3 hours Start 2024.08.12 @ 10:56:19 End 2024.08.12 @ 13:26:00 Sessions 1 Manual Loads 0 Difficulty Adventurer Special Mode None Game No. 63 Rogue 19 Adventurer 43 Explorer 1 Win Type - Total 0 Types 0/0/0/0/0/0/0/0/0 Lore% 28 Gallery% 53 Achievement% 39 Wizard Run 0 Options --------- Layout 1 ASCII 0 Keyboard 1 Movement Numpad Keybinds 0 Fullscreen 2 Font 24/X11 Map View 50x35 Zoom Use 0% Tactical HUD 1 Map Filters NONE Filters NONE Steam 1 RUN: a5525d27-48d2-4914-b934-f76f4676d3ae